[Event "13th KIIT Festival-A 2022"]
[Site "Bhubaneswar"]
[Date "2022.05.26"]
[Round "6.5"]
[White "Alekhya Mukhopadhyay"]
[Black "Savchenko, Boris"]
[Result "0-1"]
[ECO "B94"]
[WhiteElo "2162"]
[BlackElo "2524"]
[Annotator "TA"]
[PlyCount "90"]
[EventDate "2022.05.15"]
[EventType "swiss"]
[EventCountry "IND"]
[SourceTitle "playchess.com"]
[Source "ChessBase"]
[SourceQuality "1"]
[TimeControl "5400+30"]

{[%evp 12,90,1,0,41,41,42,48,58,0,0,20,5,18,0,-29,-28,-264,-277,-284,-280,-334,-336,-604,-600,-578,-342,-431,-167,-162,-175,-170,-172,-174,-168,-238,-231,-254,-243,-254,-253,-241,-238,-247,-243,-235,-234,-249,-195,-207,-198,-203,-203,-223,-228,-224,-225,-208,-200,-208,-222,-206,-190,-271,-268,-292,-233,-410,-398,-400,-400,-488,-481,-537,-545,-537,-530,-29970,-6019,-2879,-4734]} 1. e4 {[%emt 0:00:07]} c5 {[%emt 0:00:19]} 2. Nf3 {[%emt 0:00:08]} d6 {[%emt 0:00:05]} 3. d4 {[%emt 0:00:06]} cxd4 {[%emt 0:00:03]} 4. Nxd4 {[%emt 0:00:11]} Nf6 {[%emt 0:00:03]} 5. Nc3 {[%emt 0:00:08]} a6 {[%emt 0:00:04]} 6. Bg5 {[%emt 0:00:10]} Nbd7 {[%emt 0:00:37]} 7. f4 {[%emt 0:01:01] 7.Qe2 is the modern continuation.} g6 {[%emt 0:01:27] B94: Sicilian Najdorf: 6 Bg5 Nbd7.} 8. Qe2 {[%emt 0:03:34]} Bg7 {[%emt 0:00:48]} 9. O-O-O {[%emt 0:01:07]} O-O {[%emt 0:15:38] White is slightly better.} 10. e5 {[%emt 0:11:35]} dxe5 {[%emt 0:00:36]} 11. fxe5 {[%emt 0:03:23]} Qa5 {[%emt 0:00:06]} 12. Nf3 {[%emt 0:01:31]} Ng4 {[%emt 0:00:15] [#]} 13. e6 $146 {[%emt 0:03:18]} ({Predecessor:} 13. Rd5 b5 14. h3 Nh6 15. Kb1 Nf5 16. Ne4 Qc7 17. g4 Bb7 18. Rxd7 Qxd7 19. gxf5 Qxf5 {½-½ (41) Alekseev,E (2673)-Grischuk,A (2763) Moscow 2012}) 13... Nde5 {[%emt 0:24:50][%cal Bd7e5,Be5c4,Bc4b2][%mdl 32]} 14. Bxe7 $2 {[%emt 0:23:55] This move loses the game for White.} (14. Nxe5 $11 Nxe5 15. exf7+ (15. Bxe7 Bxe6 16. a3 Nc4 $17) 15... Nxf7 16. Bd2) 14... Bxe6 $19 {[%emt 0:05:02]} 15. Bxf8 {[%emt 0:24:19]} Rxf8 {[%emt 0:00:11]} 16. h3 {[%emt 0:01:46]} Nc4 $1 {[%emt 0:06:33][%cal Oc4b2] White must now prevent ...Nxb2!} 17. Rd4 $2 {[%emt 0:07:19] [#]} (17. hxg4 Qb4 18. Qxc4 Bxc4 19. a3) 17... Nxb2 $1 {[%emt 0:13:54][%mdl 576] Decoy} 18. Kxb2 {[%emt 0:12:47]} Qb6+ {[%emt 0:00:29]} 19. Kc1 {[%emt 0:01:06][%cal Oh3g4]} Bxd4 $2 {[%emt 0:03:54]} (19... Bh6+ 20. Rd2 Qb4 21. hxg4 Qxc3) 20. Nxd4 {[%emt 0:00:13]} Qxd4 {[%emt 0:00:05]} 21. Qd2 {[%emt 0:00:11]} Qxd2+ {[%emt 0:00:38]} 22. Kxd2 {[%emt 0:00:05]} Rd8+ {[%emt 0:00:09]} 23. Ke2 {[%emt 0:03:03]} (23. Bd3 $142 Ne5 24. Re1) 23... Bc4+ {[%emt 0:02:01]} 24. Ke1 {[%emt 0:00:52]} Bxf1 {[%emt 0:00:19]} 25. Rxf1 {[%emt 0:00:06][%mdl 4096] Endgame KRN-KRN} Ne3 {[%emt 0:00:15][%csl LRc2,LRf1,LRg2]} 26. Rf2 {[%emt 0:00:39] [#]} Rc8 $1 {[%emt 0:00:10]} 27. Ne4 {[%emt 0:00:39]} Nxc2+ {[%emt 0:00:09]} 28. Kd2 {[%emt 0:00:34]} Nb4 {[%emt 0:01:01]} 29. Ke3 {[%emt 0:00:32]} Re8 {[%emt 0:03:35] Threatens to win with ...f5.} 30. g4 {[%emt 0:00:28] Against f5} Re5 {[%emt 0:04:03] aiming for ...f5.} 31. Rb2 {[%emt 0:00:35]} a5 {[%emt 0:15:31] Hoping for ...f5.} 32. g5 {[%emt 0:00:24]} h6 {[%emt 0:00:08]} 33. h4 {[%emt 0:00:19]} hxg5 {[%emt 0:01:26]} 34. hxg5 {[%emt 0:00:04]} b5 {[%emt 0:00:20]} 35. a3 {[%emt 0:01:01]} Nc6 {[%emt 0:00:08]} 36. Rc2 {[%emt 0:00:32] [#]} Ne7 {[%emt 0:00:14]} 37. Kd4 {[%emt 0:00:34]} (37. Rd2 {was necessary.}) 37... Rd5+ {[%emt 0:00:20]} 38. Ke3 {[%emt 0:00:07]} Kg7 {[%emt 0:00:17]} 39. Rc7 $2 {[%emt 0:00:56]} (39. Rd2 {might work better.}) 39... Nf5+ {[%emt 0:00:27]} 40. Kf4 {[%emt 0:00:14]} Nd4 {[%emt 0:00:12] And now ...Ne6+ would win.} 41. Re7 {[%emt 0:00:49]} Ne6+ {[%emt 0:00:09]} 42. Kg4 {[%emt 0:00:25]} b4 {[%emt 0:01:57]} 43. axb4 {[%emt 0:00:26]} axb4 {[%emt 0:00:06] ...b3 is the strong threat.} 44. Rb7 {[%emt 0:00:19]} Rd4 {[%emt 0:00:07] ( -> ...Nxg5)} 45. Kf3 {[%emt 0:00:10] [#]} Rxe4 $1 {[%emt 0:00:06] Weighted Error Value: White=0.68/Black=0.17 (very precise)} 0-1

[Event "13th KIIT Festival-A 2022"]
[Site "Bhubaneswar"]
[Date "2022.05.26"]
[Round "6.6"]
[White "Nikitenko, Mihail"]
[Black "Saravana, Krishnan P."]
[Result "1/2-1/2"]
[ECO "C03"]
[WhiteElo "2479"]
[BlackElo "2269"]
[Annotator "TA"]
[PlyCount "162"]
[EventDate "2022.05.15"]
[EventType "swiss"]
[EventCountry "IND"]
[SourceTitle "playchess.com"]
[Source "ChessBase"]
[SourceQuality "1"]
[TimeControl "5400+30"]

{[%evp 9,162,14,27,25,25,25,25,15,39,38,44,40,45,31,35,28,37,-9,0,0,20,0,34,25,17,6,46,-18,-9,0,-18,0,-9,-37,0,-173,-123,-205,-140,-134,-136,-169,-156,-160,-165,-202,-189,-147,-25,-59,-59,-43,0,0,0,0,0,0,0,0,0,-187,0,0,0,0,25,15,16,10,10,10,10,10,10,10,12,8,8,0,110,39,53,54,37,58,48,66,154,135,140,135,153,141,159,151,148,83,83,83,80,89,176,166,169,159,128,66,70,92,170,155,161,52,52,69,77,77,73,61,63,0,29,37,45,45,45,0,0,0,0,0,57,57,60,60,60,60,80,8,11,8,10,10,20,20,20,20,20,26,41,0,0,0,0]} 1. e4 {[%emt 0:00:07]} e6 {[%emt 0:00:09]} 2. d4 {[%emt 0:00:06]} d5 {[%emt 0:00:04]} 3. Nd2 {[%emt 0:00:04]} h6 {[%emt 0:00:15]} 4. Ngf3 {[%emt 0:00:16]} Nf6 {[%emt 0:00:15]} 5. Bd3 {[%emt 0:00:06]} c5 {[%emt 0:00:36]} 6. e5 {[%emt 0:00:04] C03: French Tarrasch: Unusual Black 3rd moves.} Nfd7 {[%emt 0:00:06]} 7. c3 {[%emt 0:00:04]} Nc6 {[%emt 0:00:41]} 8. O-O {[%emt 0:00:05] White has an edge.} g5 {[%emt 0:00:43]} 9. b3 {[%emt 0:00:04]} Qb6 {[%emt 0:08:51][%cal Rc5d4]} 10. Bb2 {[%emt 0:00:40]} cxd4 {[%emt 0:00:30]} 11. cxd4 {[%emt 0:00:04]} Be7 {[%emt 0:00:05] [#]} 12. h3 $146 {[%emt 0:04:53]} ({Predecessor:} 12. Rc1 a5 13. a4 Ndb8 14. Nb1 Na6 15. Na3 Nc7 16. Ne1 Bd7 17. Nb5 Nxb5 18. Bxb5 {½-½ (54) Santos Latasa,J (2511)-Ider,B (2414) Porto 2015}) 12... h5 {[%emt 0:14:04]} 13. g4 {[%emt 0:00:33]} (13. Rc1 $14 {might be stronger.}) 13... hxg4 {[%emt 0:07:47]} 14. hxg4 {[%emt 0:00:11]} Nf8 {[%emt 0:00:06]} 15. a3 {[%emt 0:01:29] Against Nb4} Bd7 {[%emt 0:04:52]} 16. b4 {[%emt 0:00:29]} Nd8 {[%emt 0:08:04]} 17. Qe2 {[%emt 0:03:55]} Rg8 {[%emt 0:08:41]} 18. Qe3 {[%emt 0:01:32]} (18. Rfc1 $14) 18... Bb5 $11 {[%emt 0:07:22]} 19. Bxb5+ {[%emt 0:00:28]} Qxb5 {[%emt 0:00:07]} 20. a4 {[%emt 0:00:09]} Qd7 {[%emt 0:01:28]} (20... Qxb4 21. Ba3 Qa5 22. Bxe7 Kxe7 23. Rfc1 $16 (23. Nxg5 Rc8 $14)) 21. b5 {[%emt 0:00:06]} Ng6 {[%emt 0:02:48]} 22. Ne1 $2 {[%emt 0:04:41]} (22. Nxg5 $11 Nxe5 23. dxe5 Bxg5 24. f4) 22... f5 {[%emt 0:03:42]} (22... Rh8 $19 {White must now prevent ...f5.} 23. Nd3 a6) 23. exf6 $17 {[%emt 0:01:28]} Bxf6 {[%emt 0:00:27]} 24. Nd3 {[%emt 0:01:12]} Qh7 $1 {[%emt 0:01:49]} 25. f3 {[%emt 0:03:02]} Nf4 {[%emt 0:05:39]} (25... Rh8 26. Kf2 $15) 26. Nxf4 {[%emt 0:00:55]} gxf4 {[%emt 0:00:05]} 27. Qc3 {[%emt 0:00:23]} Rh8 {[%emt 0:12:29][%csl Gh8][%cal Rh7h2]} 28. Kf2 {[%emt 0:00:12][%cal Of1h1,Bg1f2,Bf2e1,Be1d1][%mdl 32] [#]} Qh2+ {[%emt 0:00:24]} ({But not} 28... Qh3 $6 29. Ke2 $11) (28... Rc8 $1 $17 {[%cal Rc8c3][%mdl 512]} 29. Qxc8 Qd3) 29. Ke1 $15 {[%emt 0:00:04]} Qg2 {[%emt 0:00:11]} 30. Qd3 {[%emt 0:01:39]} Rh2 {[%emt 0:00:44]} 31. Rc1 $1 {[%emt 0:01:23]} Nf7 {[%emt 0:00:58]} 32. Kd1 {[%emt 0:00:39]} Kd7 {[%emt 0:08:15] Against Rc7+} 33. b6 {[%emt 0:01:34]} Nd6 {[%emt 0:00:16]} 34. Rc7+ {[%emt 0:11:16]} Kd8 {[%emt 0:00:07]} 35. Rh7 $2 {[%emt 0:00:03]} (35. Re1 $11 {and White stays safe.}) 35... axb6 $2 {[%emt 0:01:03]} ({Black should play} 35... Rxh7 $19 36. Qxh7 Nc4 37. Qc7+ Ke8) 36. Rxh2 $11 {[%emt 0:00:20] Really sharp!} Qxh2 {[%emt 0:00:02]} 37. Qg6 $1 {[%emt 0:00:04]} Qh8 {[%emt 0:03:31]} 38. Re1 $1 {[%emt 0:02:52]} (38. g5 Bxd4 39. Qxe6 Kc7 $17) 38... Qg7 $1 {[%emt 0:00:24]} 39. Qxg7 {[%emt 0:00:05]} Bxg7 {[%emt 0:00:03]} 40. Rxe6 {[%emt 0:00:03]} Kd7 {[%emt 0:00:33]} 41. Rg6 {[%emt 0:00:04]} Bf8 {[%emt 0:01:27]} 42. Rg8 {[%emt 0:00:06]} b5 {[%emt 0:00:47]} 43. axb5 {[%emt 0:02:00]} Nxb5 {[%emt 0:00:07]} 44. Nb3 {[%emt 0:00:02]} Ke6 {[%emt 0:00:46]} (44... Re8 $11 {remains equal.}) 45. Rg6+ {[%emt 0:01:10]} (45. Nc5+ $16 Kf7 46. Rg5) 45... Kd7 $14 {[%emt 0:00:22]} 46. Nc5+ {[%emt 0:00:22]} Bxc5 {[%emt 0:00:38]} 47. dxc5 {[%emt 0:00:03][%mdl 4096] Endgame KRB-KRN} Ra2 $1 {[%emt 0:00:42]} 48. Kc1 {[%emt 0:00:22]} Ra4 {[%emt 0:00:12]} (48... Na3 $14) 49. Rb6 $16 {[%emt 0:00:27][%csl LRb5,LRb7]} Rc4+ {[%emt 0:00:17]} 50. Kd2 {[%emt 0:01:43]} Rxc5 {[%emt 0:00:53]} 51. Rxb7+ {[%emt 0:00:03]} Ke6 {[%emt 0:00:42]} 52. Rb6+ {[%emt 0:00:08]} Kd7 {[%emt 0:00:38]} 53. Be5 {[%emt 0:00:24] Inhibits Nd6.} (53. Rf6 $142 $1) 53... Na3 {[%emt 0:00:16]} 54. Rb7+ {[%emt 0:00:03]} Ke6 {[%emt 0:00:26]} 55. Bxf4 {[%emt 0:00:07] White is more active.} Rc2+ {[%emt 0:00:07]} (55... Nc4+ $16 56. Ke1 d4) 56. Kd3 $18 {[%emt 0:00:54] Strongly threatening Rb6+.} Rf2 {[%emt 0:00:36]} 57. Ke3 {[%emt 0:00:04]} Ra2 {[%emt 0:00:05] [#]} 58. Rb6+ {[%emt 0:01:15]} (58. Bg5 $1 $16) 58... Kf7 $14 {[%emt 0:00:18]} 59. Kd4 {[%emt 0:02:26] aiming for g5.} Nc4 {[%emt 0:01:03]} (59... Nc2+ $16 {keeps fighting.} 60. Ke5 (60. Kxd5 Ra5+ 61. Ke4 Ra4+ 62. Ke5 Ra5+ 63. Kd6 Nd4 $14) 60... d4) 60. Rb7+ $18 {[%emt 0:02:24]} Ke6 {[%emt 0:00:08]} 61. Bg5 {[%emt 0:00:15]} ({Better is} 61. Rh7 $18) 61... Ra4 $1 $14 {[%emt 0:00:38]} 62. Kc5 {[%emt 0:01:44][%csl Gg5][%cal Rb7e7]} Ra5+ {[%emt 0:00:04] [#]} 63. Kb4 $1 {[%emt 0:00:04]} Ra1 {[%emt 0:01:20] Threatens to win with ...Rb1+.} 64. Re7+ {[%emt 0:03:19]} Kd6 {[%emt 0:00:05]} 65. Rg7 {[%emt 0:00:08]} (65. Rh7 $14) 65... Rf1 {[%emt 0:01:26]} 66. f4 {[%emt 0:00:51]} Ne3 {[%emt 0:00:37]} 67. Rg6+ {[%emt 0:02:29]} Kd7 {[%emt 0:00:05]} 68. Bh6 {[%emt 0:00:05] And now Kc5 would win.} d4 {[%emt 0:00:29]} 69. Kc5 {[%emt 0:00:17]} d3 {[%emt 0:00:13] Hoping for ...Rc1+.} 70. Rd6+ {[%emt 0:00:05]} Kc7 {[%emt 0:00:34]} (70... Ke8 $11) 71. Rxd3 {[%emt 0:00:12]} Rc1+ {[%emt 0:00:31]} 72. Kd4 {[%emt 0:00:15]} Nxg4 {[%emt 0:00:10]} 73. Bg5 {[%emt 0:00:34]} Nf2 {[%emt 0:00:16]} 74. Re3 {[%emt 0:00:17]} ({White should try} 74. Rd2 $16 Nh3 75. Re2 (75. Rd3 Nxg5 76. fxg5 Rg1 $11)) 74... Rd1+ $11 {[%emt 0:00:07]} 75. Kc4 {[%emt 0:00:04]} Kd6 {[%emt 0:00:31]} 76. Be7+ {[%emt 0:01:10]} Kd7 {[%emt 0:00:06]} 77. Bc5 {[%emt 0:01:06]} Rc1+ {[%emt 0:00:36]} 78. Kd5 {[%emt 0:00:06]} Rd1+ {[%emt 0:00:05]} 79. Bd4 {[%emt 0:00:07]} Nd3 {[%emt 0:01:27]} 80. f5 {[%emt 0:00:12]} Nb4+ {[%emt 0:00:47]} 81. Ke4 {[%emt 0:00:46]} Rxd4+ {[%emt 0:00:34] What a bad dream for Black.  Weighted Error Value: White=0.21 (precise) /Black=0.21 (precise)} 1/2-1/2

[Event "13th KIIT Festival-A 2022"]
[Site "Bhubaneswar"]
[Date "2022.05.26"]
[Round "6.7"]
[White "Mirzoev, Azer"]
[Black "Sangma, Rahul"]
[Result "1-0"]
[ECO "D02"]
[WhiteElo "2476"]
[BlackElo "2232"]
[Annotator "TA"]
[PlyCount "131"]
[EventDate "2022.05.15"]
[EventType "swiss"]
[EventCountry "IND"]
[SourceTitle "playchess.com"]
[Source "ChessBase"]
[SourceQuality "1"]
[TimeControl "5400+30"]

{[%evp 9,131,8,9,12,16,14,24,18,22,8,33,6,16,14,47,27,32,45,88,99,100,92,94,76,75,62,66,43,52,72,54,50,116,120,130,126,112,111,100,116,142,122,124,119,116,117,130,130,210,207,288,273,268,207,208,207,205,207,211,204,216,200,255,264,221,204,310,298,317,311,308,152,152,152,152,152,152,152,159,159,159,152,159,159,159,152,152,151,152,128,152,152,152,152,152,152,548,520,589,587,571,554,1547,1547,1418,1415,29991,29986,29984,29985,29987,29987,29987,29988,29988,29989,29991,29989,29994,29995,29996,0,29991,29992]} 1. d4 {[%emt 0:00:02]} Nf6 {[%emt 0:08:49]} 2. Nf3 {[%emt 0:00:05]} g6 {[%emt 0:00:13]} 3. Nbd2 {[%emt 0:00:11]} d5 {[%emt 0:00:14]} 4. e3 {[%emt 0:00:09]} Bg7 {[%emt 0:00:07]} 5. b4 {[%emt 0:00:10]} a5 {[%emt 0:00:41]} 6. b5 {[%emt 0:00:07] D02: 1 d4 d5 2 Nf3 sidelines, including 2...Nf6 3 g3 and 2...Nf6 3 Bf4.} c5 {[%emt 0:00:11]} 7. bxc6 {[%emt 0:00:25]} Nxc6 {[%emt 0:00:26][%cal Bb8c6,Bc6b4,Bb4d3][%mdl 32] 7...Nxc6 is better than 7...bxc6.} 8. Be2 {[%emt 0:01:43] White has an edge.} O-O {[%emt 0:02:17]} 9. O-O {[%emt 0:00:09]} Bf5 {[%emt 0:05:55]} 10. Bb2 {[%emt 0:11:59]} Qb6 {[%emt 0:02:36]} 11. Ba3 {[%emt 0:06:50] [#]} Qc7 $146 {[%emt 0:17:26]} ({Predecessor:} 11... Rfd8 12. c3 a4 13. Qc1 Rac8 14. Bc5 Qa5 15. Qb2 Nd7 16. Ba3 b5 17. Nh4 Be6 {1-0 (50) Sargissian,G (2680)-Puranik,A (2514) Abu Dhabi 2018}) 12. c4 {[%emt 0:10:39]} Nb4 {[%emt 0:16:59]} 13. Qb3 {[%emt 0:01:53]} Bc2 {[%emt 0:05:51]} 14. Qb2 {[%emt 0:03:01]} Bd3 {[%emt 0:00:06]} 15. Bxd3 {[%emt 0:01:43]} Nxd3 {[%emt 0:00:03]} 16. Qb3 {[%emt 0:03:41]} dxc4 {[%emt 0:03:13]} 17. Nxc4 {[%emt 0:02:01]} b5 {[%emt 0:00:34]} 18. Ncd2 {[%emt 0:00:28]} Nb4 {[%emt 0:01:54]} 19. Bxb4 {[%emt 0:08:52]} axb4 {[%emt 0:00:23]} 20. Qxb4 {[%emt 0:00:10]} Qd7 {[%emt 0:06:00]} ({Black should try} 20... Rfb8 $1 $14) 21. Ne5 $36 {[%emt 0:09:47][%mdl 2048] Black is under strong pressure.} Qe6 {[%emt 0:03:10]} 22. Qxb5 {[%emt 0:08:40]} Rxa2 {[%emt 0:00:26]} 23. Ndf3 {[%emt 0:02:03] Strongly threatening Ng5. Pair of Knights!} Rxa1 {[%emt 0:03:09]} 24. Rxa1 {[%emt 0:00:10]} Qd5 {[%emt 0:00:11] Prevents Qb7.} 25. Qxd5 {[%emt 0:06:22] 0x0.0024a8b37ed6dp-1022s more active pieces.} Nxd5 {[%emt 0:00:02]} 26. Ra5 {[%emt 0:00:55]} Rc8 {[%emt 0:03:07] ( -> ...Rc1+)} 27. g4 {[%emt 0:01:18]} e6 {[%emt 0:01:51]} 28. Ra7 {[%emt 0:02:12]} Rf8 {[%emt 0:04:00]} (28... f6 $16) 29. g5 $18 {[%emt 0:01:50]} f6 {[%emt 0:02:47]} 30. gxf6 {[%emt 0:00:38]} Bxf6 {[%emt 0:00:21]} 31. Kg2 {[%emt 0:02:06]} Re8 {[%emt 0:02:09]} 32. Ng4 {[%emt 0:01:09]} Bg7 {[%emt 0:00:07]} 33. h4 {[%emt 0:00:38]} Nf6 {[%emt 0:01:22]} 34. Nge5 {[%emt 0:00:32]} Ne4 {[%emt 0:00:02]} 35. Nd7 {[%emt 0:03:01]} Nd6 {[%emt 0:01:47]} 36. Ng5 {[%emt 0:01:47]} h6 {[%emt 0:02:05]} 37. Nf3 {[%emt 0:00:25]} Nf7 {[%emt 0:00:13]} (37... Re7 $142 38. Ra8+ Ne8) 38. Ra6 {[%emt 0:01:14]} Kh7 {[%emt 0:01:12]} 39. Nc5 {[%emt 0:01:00]} e5 {[%emt 0:00:33] [#]} 40. Ra7 {[%emt 0:04:02]} (40. d5 $1 $18 {and the rest is easy.}) 40... exd4 $16 {[%emt 0:01:03]} 41. Rxf7 {[%emt 0:00:34]} dxe3 {[%emt 0:00:02]} 42. Nd3 {[%emt 0:02:37]} exf2 {[%emt 0:02:02]} 43. Kxf2 {[%emt 0:00:37]} Re6 {[%emt 0:00:28]} 44. Rd7 {[%emt 0:00:17]} Kg8 {[%emt 0:00:27]} 45. Rd8+ {[%emt 0:01:20]} Kh7 {[%emt 0:00:22]} 46. Kg3 {[%emt 0:00:30]} ({But not} 46. Rd7 Rf6 47. Kg3 Kg8 48. Rd8+ Kh7) 46... Ra6 {[%emt 0:02:14]} 47. Re8 {[%emt 0:01:12]} Bf6 {[%emt 0:00:47]} 48. Nf2 {[%emt 0:00:11]} Ra3 {[%emt 0:00:28][%cal Of6h4]} 49. Re4 {[%emt 0:01:09]} Rc3 {[%emt 0:02:44]} 50. Ra4 {[%emt 0:00:53]} Rb3 {[%emt 0:00:03]} 51. Kg4 {[%emt 0:00:33]} Kg8 {[%emt 0:02:00]} 52. Ne4 {[%emt 0:00:46]} Be7 {[%emt 0:00:01]} (52... Bb2 $16 {is a better chance.} 53. Rc4 Rb5 54. Rc8+ Kg7 55. Rc7+ Kg8) 53. Ra8+ $18 {[%emt 0:00:36]} Kf7 {[%emt 0:00:03]} 54. Ne5+ {[%emt 0:00:40]} Ke6 {[%emt 0:00:15]} 55. Nxg6 {[%emt 0:00:31] Re8 is the strong threat.} Rb4 {[%emt 0:00:58]} 56. Ra6+ {[%emt 0:00:22]} Kf7 {[%emt 0:00:46]} 57. Kf5 {[%emt 0:00:33] Ne5+ would kill now.} Bxh4 {[%emt 0:00:26]} 58. Nxh4 {[%emt 0:00:10]} Rb5+ {[%emt 0:00:39]} 59. Kf4 {[%emt 0:00:05]} Ke7 {[%emt 0:00:38]} 60. Ng6+ {[%emt 0:00:18]} Kd8 {[%emt 0:00:09]} 61. Ra7 {[%emt 0:00:19]} Rd5 {[%emt 0:00:47]} 62. Ne5 {[%emt 0:00:15]} Rd1 {[%emt 0:00:21]} 63. Kf5 {[%emt 0:00:18]} h5 {[%emt 0:00:13]} 64. Ke6 {[%emt 0:00:19]} Kc8 {[%emt 0:00:14]} 65. Kf5 {[%emt 0:03:48]} Kd8 $1 {[%emt 0:02:18] [#]} 66. Nd6 $1 {[%emt 0:00:30] Weighted Error Value: White=0.09 (flawless) /Black=0.39} 1-0